fUST/lending_fUST_20250809
["ID","MTS","AMOUNT","RATE_DAILY","PERIOD"]
[378102193,1754732635862,1415.47,0.00021917,2]
[378102194,1754732637823,460.0,0.00021917,2]
[378102195,1754732638400,460.0,0.00021917,2]
[378102196,1754732638893,-593.0,0.00022021,2]
[378102197,1754732638916,-197.39913449,0.00022023,2]
[378102198,1754732638940,-599.0,0.00022062,2]
[378102199,1754732638962,-300.0,0.0002209,2]
[378102200,1754732638993,-10703.07964718,0.00022091,2]
[378102201,1754732639018,-599.0,0.000221,2]
[378102202,1754732639040,-150.59680682,0.00022114,2]
[378102203,1754732639062,-500.0,0.00022173,2]
[378102204,1754732639084,-500.0,0.00022173,2]
[378102205,1754732639106,-500.0,0.00022173,2]
[378102206,1754732639126,-500.0,0.00022173,2]
[378102207,1754732639148,-500.0,0.00022173,2]
[378102208,1754732639169,-500.0,0.00022173,2]
[378102209,1754732639189,-500.0,0.00022173,2]
[378102210,1754732639210,-500.0,0.00022173,2]
[378102211,1754732639231,-349.37854188,0.00022173,2]
[378102212,1754732639253,-500.0,0.00022173,2]
[378102213,1754732639275,-340.41549128,0.00022173,2]
[378102214,1754732639297,-158.0,0.00022173,2]
[378102215,1754732639318,-160.01794441,0.00022173,2]
[378102216,1754732639341,-500.98404244,0.00022173,2]
[378102217,1754732639364,-260.47020946,0.00022173,2]
[378102218,1754732639386,-158.0,0.00022173,2]
[378102219,1754732639408,-168.4177865,0.00022173,2]
[378102220,1754732639431,-188.4178005,0.00022173,2]
[378102221,1754732639457,-500.0,0.00022173,2]
[378102222,1754732639480,-158.4,0.00022173,2]
[378102223,1754732639502,-158.41669994,0.00022173,2]
[378102224,1754732639528,-160.01751809,0.00022173,2]
[378102225,1754732639552,-158.0,0.00022173,2]
[378102226,1754732639574,-159.402156,0.00022173,2]
[378102227,1754732639596,-158.4175313,0.00022173,2]
[378102228,1754732639619,-181.01693933,0.00022173,2]
[378102229,1754732639643,-158.4157627,0.00022173,2]
[378102230,1754732639665,-158.41672312,0.00022173,2]
[378102231,1754732639688,-158.41676855,0.00022173,2]
[378102232,1754732639712,-338.41744348,0.00022173,2]
[378102233,1754732639736,-341.516943,0.00022173,2]
[378102234,1754732639758,-200.4,0.00022173,2]
[378102235,1754732639782,-160.41629103,0.00022173,2]
[378102236,1754732639803,-500.0,0.00022173,2]
[378102237,1754732639825,-500.0,0.00022173,2]
[378102238,1754732639847,-160.0,0.00022173,2]
[378102239,1754732639869,-160.0,0.00022173,2]
[378102240,1754732640034,-158.0,0.00022173,2]
[378102241,1754732640057,-158.41708852,0.00022173,2]
[378102242,1754732640079,-160.01763069,0.00022173,2]
[378102243,1754732640101,-158.0,0.00022173,2]
[378102244,1754732640123,-500.0,0.00022173,2]
[378102245,1754732640145,-500.0,0.00022173,2]
[378102246,1754732640168,-500.0,0.00022173,2]
[378102247,1754732640190,-500.0,0.00022173,2]
[378102248,1754732640213,-500.0,0.00022173,2]
[378102249,1754732640236,-500.0,0.00022173,2]
[378102250,1754732640259,-500.0,0.00022173,2]
[378102251,1754732640285,-500.0,0.00022173,2]
[378102252,1754732640308,-500.0,0.00022173,2]
[378102253,1754732640330,-500.0,0.00022173,2]
[378102254,1754732640352,-500.0,0.00022173,2]
[378102255,1754732640374,-500.0,0.00022173,2]
[378102256,1754732640396,-500.0,0.00022173,2]
[378102257,1754732640417,-500.0,0.00022173,2]
[378102258,1754732640442,-500.0,0.00022173,2]
[378102259,1754732640463,-500.0,0.00022173,2]
[378102260,1754732640484,-500.0,0.00022173,2]
[378102261,1754732640505,-521.13419084,0.00022173,2]
[378102262,1754732640528,-500.0,0.00022173,2]
[378102263,1754732640550,-500.0,0.00022173,2]
[378102264,1754732640571,-500.0,0.00022173,2]
[378102265,1754732640592,-500.0,0.00022173,2]
[378102266,1754732640614,-500.0,0.00022173,2]
[378102267,1754732640639,-500.0,0.00022173,2]
[378102268,1754732640660,-500.0,0.00022173,2]
[378102269,1754732640681,-500.0,0.00022173,2]
[378102270,1754732640702,-524.94051381,0.00022173,2]
[378102271,1754732640724,-216.74363151,0.00022173,2]
[378102272,1754732640746,-500.0,0.00022173,2]
[378102273,1754732640768,-154.37255932,0.00022173,2]
[378102274,1754732640790,-500.0,0.00022173,2]
[378102275,1754732640812,-500.0,0.00022173,2]
[378102276,1754732640834,-500.0,0.00022173,2]
[378102277,1754732640857,-500.0,0.00022173,2]
[378102278,1754732640878,-500.358427,0.00022173,2]
[378102279,1754732640900,-500.0,0.00022173,2]
[378102280,1754732640921,-500.0,0.00022173,2]
[378102281,1754732640942,-162.22192798,0.00022173,2]
[378102282,1754732640963,-500.0,0.00022173,2]
[378102283,1754732640984,-500.0,0.00022173,2]
[378102284,1754732641005,-500.0,0.00022173,2]
[378102285,1754732641026,-500.0,0.00022173,2]
[378102286,1754732641049,-503.18081389,0.00022173,2]
[378102287,1754732641072,-503.85479261,0.00022173,2]
[378102288,1754732641097,-500.0,0.00022173,2]
[378102289,1754732641122,-500.0,0.00022173,2]
[378102290,1754732641144,-261.37594042,0.00022173,2]
[378102291,1754732641167,-500.0,0.00022173,2]
[378102292,1754732641188,-500.0,0.00022173,2]
[378102293,1754732641211,-50000.0,0.00022173,2]
[378102294,1754732641235,-817.56,0.00022181,10]
[378102295,1754732641258,-1015.14,0.00022181,10]
[378102296,1754732641280,-845.95,0.00022181,10]
[378102297,1754732641301,-704.96,0.00022181,10]
[378102298,1754732641324,-151.0,0.00022191,7]
[378102299,1754732641346,-2057.221825,0.00022191,7]
[378102300,1754732641368,-460.0,0.00022191,2]
[378102301,1754732641390,-2057.221825,0.00022191,7]
[378102302,1754732641411,-460.0,0.00022191,2]
[378102303,1754732641433,-460.0,0.00022191,2]
[378102304,1754732641458,-527.04,0.00022191,2]
[378102305,1754732641481,-203.42953167,0.00022191,2]
[378102306,1754732641502,-171.82381593,0.00022191,2]
[378102307,1754732641525,-151.0,0.00022191,7]
[378102308,1754732641546,-460.0,0.00022191,2]
[378102309,1754732641567,-460.0,0.00022191,2]
[378102310,1754732641589,-299.86700934,0.00022191,2]
[378102311,1754732666868,10000.0,0.00021145,2]
[378102312,1754732694239,2035.6778854,0.0002104,2]
[378102313,1754732695984,1027.18924268,0.00020248,2]
[378102318,1754732795828,2271.49,0.00030137,120]
[378102319,1754732808104,6558.90214923,0.000199,2]
[378102320,1754732828754,7075.6349027,0.00020841,2]
[378102321,1754732858391,183.4834233,0.00020983,2]
[378102322,1754732903854,346.786263,0.00020816,2]
[378102324,1754732933055,40236.363274,0.00020816,2]
[378102325,1754732997287,684.79282845,0.00020073,2]
[378102326,1754733003514,6345.88441606,0.000199,2]
[378102374,1754733032676,-6345.88441606,0.00021655,2]
[378102376,1754733032685,-409.5346305,0.000218,2]
[378102378,1754733032698,-587.47,0.00021807,10]
[378102380,1754733032714,-489.55,0.00021807,10]
[378102382,1754733032723,-1200.0,0.00021813,2]
[378102384,1754733032733,-300.0,0.00021814,2]
[378102386,1754733032748,-300.0,0.00021814,2]
[378102388,1754733032757,-300.0,0.00021814,2]
[378102390,1754733032766,-300.0,0.00021814,2]
[378102392,1754733032776,-244.0,0.00021814,2]
[378102394,1754733032785,-1200.0,0.00021815,2]
[378102396,1754733032796,-167.90923122,0.00021816,2]
[378102398,1754733032805,-335.90189626,0.00021816,2]
[378102400,1754733032816,-500.0,0.00021816,2]
[378102402,1754733032826,-500.0,0.00021816,2]
[378102404,1754733032836,-500.0,0.00021816,2]
[378102406,1754733032846,-500.0,0.00021816,2]
[378102408,1754733032856,-500.0,0.00021816,2]
[378102410,1754733032865,-500.0,0.00021816,2]
[378102413,1754733032875,-500.0,0.00021816,2]
[378102416,1754733032884,-500.0,0.00021816,2]
[378102419,1754733032894,-500.0,0.00021816,2]
[378102420,1754733032903,-500.0,0.00021816,2]
[378102422,1754733032912,-500.0,0.00021816,2]
[378102423,1754733032921,-500.0,0.00021816,2]
[378102424,1754733032931,-500.0,0.00021816,2]
[378102425,1754733032940,-500.0,0.00021816,2]
[378102426,1754733032949,-500.0,0.00021816,2]
[378102427,1754733032957,-500.0,0.00021816,2]
[378102428,1754733032967,-500.0,0.00021816,2]
[378102429,1754733032976,-500.0,0.00021816,2]
[378102430,1754733032985,-500.0,0.00021816,2]
[378102431,1754733032994,-500.0,0.00021816,2]
[378102432,1754733033003,-362.05937503,0.00021816,2]
[378102433,1754733033012,-747.13036952,0.00021816,2]
[378102434,1754733033022,-37251.88903725,0.00021817,2]
[378102435,1754733033034,-475.06006,0.00021817,2]
[378102436,1754733033050,-187133.47480872,0.00021817,2]
[378102440,1754733033228,-6408.13709209,0.00021817,2]
[378102442,1754733033240,-2569.50273568,0.00021817,2]
[378102444,1754733033250,-10552.08,0.000219,2]
[378102446,1754733033260,-500.0,0.00021917,2]
[378102448,1754733033271,-460.0,0.00021917,2]
[378102450,1754733033281,-460.0,0.00021917,2]
[378102452,1754733033292,-460.0,0.00021917,2]
[378102454,1754733033303,-460.0,0.00021917,2]
[378102456,1754733033314,-460.0,0.00021917,2]
[378102458,1754733033324,-190.670943,0.00021917,2]
[378102460,1754733033334,-190.670943,0.00021917,2]
[378102462,1754733033345,-460.0,0.00021917,2]
[378102464,1754733033355,-461.26220478,0.00021917,2]
[378102466,1754733033366,-460.0,0.00021917,2]
[378102468,1754733033376,-460.0,0.00021917,2]
[378102470,1754733033387,-460.0,0.00021917,2]
[378102472,1754733033398,-460.0,0.00021917,2]
[378102475,1754733033409,-460.0,0.00021917,2]
[378102477,1754733033419,-356.76579242,0.00021917,2]
[378102478,1754733033429,-460.0,0.00021917,2]
[378102481,1754733033440,-460.0,0.00021917,2]
[378102482,1754733033450,-461.36874443,0.00021917,2]
[378102484,1754733033460,-460.0,0.00021917,2]
[378102487,1754733033470,-460.0,0.00021917,2]
[378102489,1754733033480,-460.0,0.00021917,2]
[378102491,1754733033491,-460.0,0.00021917,2]
[378102492,1754733033501,-460.0,0.00021917,2]
[378102494,1754733033511,-460.0,0.00021917,2]
[378102496,1754733033522,-460.0,0.00021917,2]
[378102498,1754733033531,-460.0,0.00021917,2]
[378102500,1754733033541,-460.0,0.00021917,2]
[378102502,1754733033551,-460.0,0.00021917,2]
[378102504,1754733033561,-460.0,0.00021917,2]
[378102506,1754733033572,-460.0,0.00021917,2]
[378102509,1754733033582,-460.0,0.00021917,2]
[378102510,1754733033591,-460.0,0.00021917,2]
[378102512,1754733033601,-460.0,0.00021917,2]
[378102514,1754733033611,-460.0,0.00021917,2]
[378102517,1754733033621,-460.0,0.00021917,2]
[378102518,1754733033630,-460.0,0.00021917,2]
[378102520,1754733033640,-460.0,0.00021917,2]
[378102522,1754733033650,-460.0,0.00021917,2]
[378102524,1754733033659,-460.0,0.00021917,2]
[378102526,1754733033668,-461.28502274,0.00021917,2]
[378102528,1754733033678,-460.0,0.00021917,2]
[378102530,1754733033687,-460.0,0.00021917,2]
[378102532,1754733033697,-682.25,0.00021917,2]
[378102534,1754733033707,-460.0,0.00021917,2]
[378102536,1754733033717,-459.39197493,0.00021917,2]
[378102538,1754733033727,-460.98704931,0.00021917,2]
[378102540,1754733033736,-460.0,0.00021917,2]
[378102542,1754733033752,-460.0,0.00021917,2]
[378102544,1754733033762,-1080.29,0.00021917,2]
[378102546,1754733033772,-796.83,0.00021917,2]
[378102549,1754733033784,-460.0,0.00021917,2]
[378102551,1754733033794,-460.0,0.00021917,2]
[378102553,1754733033806,-1139.8,0.00021917,2]
[378102555,1754733033815,-460.0,0.00021917,2]
[378102556,1754733033825,-460.0,0.00021917,2]
[378102559,1754733033835,-460.0,0.00021917,2]
[378102561,1754733033845,-651.24,0.00021917,2]
[378102563,1754733033854,-730.99,0.00021917,2]
[378102565,1754733033864,-460.0,0.00021917,2]
[378102566,1754733033874,-2859.21,0.00021917,2]
[378102568,1754733033884,-460.0,0.00021917,2]
[378102570,1754733033893,-460.0,0.00021917,2]
[378102572,1754733033903,-460.0,0.00021917,2]
[378102574,1754733033913,-884.96,0.00021917,2]
[378102576,1754733033923,-460.0,0.00021917,2]
[378102578,1754733033934,-460.0,0.00021917,2]
[378102580,1754733033944,-460.0,0.00021917,2]
[378102583,1754733033954,-460.0,0.00021917,2]
[378102585,1754733033964,-460.0,0.00021917,2]
[378102586,1754733033974,-460.0,0.00021917,2]
[378102589,1754733033984,-460.0,0.00021917,2]
[378102590,1754733033994,-460.0,0.00021917,2]
[378102593,1754733034004,-460.0,0.00021917,2]
[378102595,1754733034014,-537.38,0.00021917,2]
[378102597,1754733034025,-460.0,0.00021917,2]
[378102598,1754733034035,-460.0,0.00021917,2]
[378102600,1754733034045,-460.0,0.00021917,2]
[378102602,1754733034056,-460.0,0.00021917,2]
[378102605,1754733034067,-460.0,0.00021917,2]
[378102607,1754733034079,-460.0,0.00021917,2]
[378102609,1754733034089,-515.01,0.00021917,2]
[378102611,1754733034100,-625.81,0.00021917,2]
[378102613,1754733034111,-564.34,0.00021917,2]
[378102614,1754733034121,-1483.96,0.00021917,2]
[378102616,1754733034131,-460.0,0.00021917,2]
[378102618,1754733034141,-460.0,0.00021917,2]
[378102620,1754733034151,-460.0,0.00021917,2]
[378102622,1754733034161,-460.0,0.00021917,2]
[378102624,1754733034170,-460.0,0.00021917,2]
[378102627,1754733034180,-460.0,0.00021917,2]
[378102628,1754733034190,-460.0,0.00021917,2]
[378102631,1754733034200,-460.0,0.00021917,2]
[378102632,1754733034209,-679.28,0.00021917,2]
[378102634,1754733034219,-2381.13,0.00021917,2]
[378102636,1754733034228,-528.16,0.00021917,2]
[378102638,1754733034238,-460.0,0.00021917,2]
[378102640,1754733034248,-5049.53,0.00021917,2]
[378102642,1754733034257,-460.0,0.00021917,2]
[378102644,1754733034268,-460.0,0.00021917,2]
[378102646,1754733034278,-460.0,0.00021917,2]
[378102648,1754733034288,-460.0,0.00021917,2]
[378102651,1754733034299,-460.0,0.00021917,2]
[378102653,1754733034309,-460.0,0.00021917,2]
[378102655,1754733034321,-460.0,0.00021917,2]
[378102657,1754733034331,-2328.46,0.00021917,2]
[378102659,1754733034341,-460.0,0.00021917,2]
[378102661,1754733034351,-460.0,0.00021917,2]
[378102663,1754733034361,-463.69,0.00021917,2]
[378102665,1754733034371,-460.0,0.00021917,2]
[378102666,1754733034380,-704.04,0.00021917,2]
[378102668,1754733034390,-2029.98,0.00021917,2]
[378102671,1754733034399,-509.41,0.00021917,2]
[378102672,1754733034410,-460.0,0.00021917,2]
[378102673,1754733034421,-1360.41,0.00021917,2]
[378102674,1754733034431,-460.0,0.00021917,2]
[378102675,1754733034441,-460.0,0.00021917,2]
[378102677,1754733034452,-242.81841759,0.00021917,2]
[378102678,1754733034461,-460.0,0.00021917,2]
[378102680,1754733034471,-460.0,0.00021917,2]
[378102681,1754733034481,-460.0,0.00021917,2]
[378102682,1754733034491,-460.0,0.00021917,2]
[378102684,1754733034501,-460.0,0.00021917,2]
[378102686,1754733034511,-460.0,0.00021917,2]
[378102688,1754733034521,-1992.141156,0.00021917,2]
[378102689,1754733034530,-460.0,0.00021917,2]
[378102690,1754733034539,-460.0,0.00021917,2]
[378102691,1754733034549,-469.75337946,0.00021917,2]
[378102692,1754733034558,-460.0,0.00021917,2]
[378102693,1754733034570,-1992.141156,0.00021917,2]
[378102694,1754733034579,-485.05,0.00021917,2]
[378102695,1754733034588,-1563.13895479,0.00021917,2]
[378102729,1754733038425,-31.41104521,0.00021917,2]
[378102731,1754733038434,-741.88,0.00021917,2]
[378102733,1754733038444,-460.0,0.00021917,2]
[378102735,1754733038453,-460.0,0.00021917,2]
[378102737,1754733038462,-275.03895479,0.00021917,2]
[378102779,1754733040485,-184.96104521,0.00021917,2]
[378102780,1754733040494,-462.39815269,0.00021917,2]
[378102781,1754733040503,-460.0,0.00021917,2]
[378102782,1754733040513,-1820.98,0.00021917,2]
[378102783,1754733040522,-460.0,0.00021917,2]
[378102784,1754733040531,-829.91,0.00021917,2]
[378102785,1754733040540,-460.0,0.00021917,2]
[378102786,1754733040549,-823.21,0.00021917,2]
[378102787,1754733040559,-460.0,0.00021917,2]
[378102788,1754733040569,-460.0,0.00021917,2]
[378102789,1754733040580,-460.0,0.00021917,2]
[378102790,1754733040590,-460.0,0.00021917,2]
[378102791,1754733040599,-491.22,0.00021917,2]
[378102792,1754733040608,-924.76,0.00021917,2]
[378102793,1754733040617,-460.0,0.00021917,2]
[378102794,1754733040627,-460.0,0.00021917,2]
[378102795,1754733040636,-460.0,0.00021917,2]
[378102796,1754733040646,-460.0,0.00021917,2]
[378102797,1754733040655,-460.0,0.00021917,2]
[378102798,1754733040666,-1088.02,0.00021917,2]
[378102799,1754733040676,-460.0,0.00021917,2]
[378102800,1754733040686,-553.94,0.00021917,2]
[378102801,1754733040695,-460.0,0.00021917,2]
[378102802,1754733040705,-460.0,0.00021917,2]
[378102803,1754733040716,-662.77,0.00021917,2]
[378102804,1754733040725,-460.0,0.00021917,2]
[378102805,1754733040735,-653.28,0.00021917,2]
[378102806,1754733040749,-480.54,0.00021917,2]
[378102807,1754733040758,-460.0,0.00021917,2]
[378102808,1754733040768,-1018.79,0.00021917,2]
[378102809,1754733040778,-460.0,0.00021917,2]
[378102810,1754733040788,-1360.59,0.00021917,2]
[378102811,1754733040798,-460.0,0.00021917,2]
[378102812,1754733040807,-197.80892963,0.00021917,2]
[378102813,1754733040818,-460.0,0.00021917,2]
[378102814,1754733040829,-1197.29,0.00021917,2]
[378102815,1754733040838,-522.82321363,0.00021917,2]
[378102816,1754733040847,-460.0,0.00021917,2]
[378102817,1754733040856,-460.0,0.00021917,2]
[378102818,1754733040866,-460.0,0.00021917,2]
[378102819,1754733040875,-460.0,0.00021917,2]
[378102820,1754733040884,-460.0,0.00021917,2]
[378102821,1754733040893,-460.0,0.00021917,2]
[378102822,1754733040903,-460.0,0.00021917,2]
[378102823,1754733040912,-460.0,0.00021917,2]
[378102824,1754733040921,-591.3,0.00021917,2]
[378102825,1754733040931,-460.0,0.00021917,2]
[378102826,1754733040940,-3171.49,0.00021917,2]
[378102827,1754733040949,-460.0,0.00021917,2]
[378102828,1754733040958,-460.0,0.00021917,2]
[378102829,1754733040967,-1553.13,0.00021917,2]
[378102830,1754733040976,-460.0,0.00021917,2]
[378102831,1754733040986,-460.0,0.00021917,2]
[378102832,1754733040995,-460.0,0.00021917,2]
[378102833,1754733041004,-460.0,0.00021917,2]
[378102834,1754733041013,-460.0,0.00021917,2]
[378102835,1754733041022,-1031.81,0.00021917,2]
[378102836,1754733041032,-460.0,0.00021917,2]
[378102837,1754733041041,-460.0,0.00021917,2]
[378102838,1754733041051,-460.0,0.00021917,2]
[378102839,1754733041060,-460.0,0.00021917,2]
[378102840,1754733041069,-460.0,0.00021917,2]
[378102841,1754733041079,-460.0,0.00021917,2]
[378102842,1754733041088,-786.92,0.00021917,2]
[378102843,1754733041098,-250.11247746,0.00021917,2]
[378102844,1754733041110,-209.88752254,0.00021917,2]
[378102845,1754733041120,-294.21957274,0.00021917,2]
[378102846,1754733041132,-165.78042726,0.00021917,2]
[378102847,1754733041141,-460.0,0.00021917,2]
[378102848,1754733041150,-158.7591481,0.00021918,2]
[378102849,1754733041159,-500.0,0.00021918,2]
[378102850,1754733041168,-500.0,0.00021918,2]
[378102851,1754733041178,-500.0,0.00021918,2]
[378102852,1754733041187,-500.0,0.00021918,2]
[378102853,1754733041196,-569.71254831,0.00021918,2]
[378102854,1754733041205,-747.1303695,0.00021967,2]
[378102855,1754733041215,-407.96,0.00021972,10]
[378102856,1754733041223,-500.0,0.00021973,2]
[378102857,1754733041233,-500.0,0.00021973,2]
[378102858,1754733041242,-500.0,0.00021973,2]
[378102859,1754733041252,-161.61667776,0.00021973,2]
[378102860,1754733041260,-500.0,0.00021973,2]
[378102861,1754733041270,-635.36961691,0.00021973,2]
[378102862,1754733041279,-500.0,0.00021973,2]
[378102863,1754733041288,-295.58083078,0.00021973,2]
[378102864,1754733041441,-500.0,0.00021973,2]
[378102865,1754733041451,-500.0,0.00021973,2]
[378102866,1754733041461,-500.0,0.00021973,2]
[378102867,1754733041470,-442.50132313,0.00021973,2]
[378102868,1754733041479,-379.80132043,0.00021973,2]
[378102869,1754733041488,-500.0,0.00021973,2]
[378102870,1754733041498,-500.0,0.00021973,2]
[378102871,1754733041506,-578.98598067,0.00021973,2]
[378102872,1754733041516,-320.90177461,0.00021973,2]
[378102873,1754733041526,-500.0,0.00021973,2]
[378102874,1754733041535,-488.74168159,0.00021973,2]
[378102875,1754733041544,-254.18695944,0.00021973,2]
[378102876,1754733041554,-474.07423188,0.00021973,2]
[378102877,1754733041563,-500.0,0.00021973,2]
[378102878,1754733041572,-500.41409581,0.00021973,2]
[378102879,1754733041581,-500.0,0.00021973,2]
[378102880,1754733041590,-500.0,0.00021973,2]
[378102881,1754733041599,-500.0,0.00021973,2]
[378102882,1754733041609,-500.0,0.00021973,2]
[378102883,1754733041619,-500.0,0.00021973,2]
[378102884,1754733041628,-500.0,0.00021973,2]
[378102885,1754733041638,-500.0,0.00021973,2]
[378102886,1754733041647,-500.0,0.00021973,2]
[378102887,1754733041656,-500.0,0.00021973,2]
[378102888,1754733041665,-200.0,0.00021973,2]
[378102889,1754733041675,-151.0,0.00021982,2]
[378102890,1754733041684,-151.0,0.00021982,2]
[378102891,1754733041694,-151.0,0.00021982,2]
[378102892,1754733041704,-500.0,0.00021982,2]
[378102893,1754733041713,-151.0,0.00021982,2]
[378102894,1754733041723,-151.0,0.00021982,2]
[378102895,1754733041732,-500.0,0.00021982,2]
[378102896,1754733041742,-151.0,0.00021982,2]
[378102897,1754733041756,-300.0,0.00021982,2]
[378102898,1754733041765,-151.0,0.00021982,2]
[378102899,1754733041775,-500.0,0.00021982,2]
[378102900,1754733041784,-151.0,0.00021982,2]
[378102901,1754733041794,-151.0,0.00021982,2]
[378102902,1754733041803,-151.0,0.00021982,2]
[378102903,1754733041813,-300.0,0.00021982,2]
[378102904,1754733041825,-151.0,0.00021982,2]
[378102905,1754733041835,-151.0,0.00021982,2]
[378102906,1754733041844,-500.0,0.00021982,2]
[378102907,1754733041854,-151.0,0.00021982,2]
[378102908,1754733041863,-151.0,0.00021982,2]
[378102909,1754733041873,-300.0,0.00021982,2]
[378102910,1754733041882,-151.0,0.00021982,2]
[378102911,1754733041891,-151.0,0.00021982,2]
[378102912,1754733041900,-151.0,0.00021982,2]
[378102913,1754733041910,-500.0,0.00021982,2]
[378102914,1754733041919,-151.0,0.00021982,2]
[378102915,1754733041929,-151.0,0.00021982,2]
[378102916,1754733041938,-300.0,0.00021982,2]
[378102917,1754733041947,-151.0,0.00021982,2]
[378102918,1754733041957,-151.0,0.00021982,2]
[378102919,1754733041966,-151.0,0.00021982,2]
[378102920,1754733041976,-151.0,0.00021982,2]
[378102921,1754733041987,-500.0,0.00021982,2]
[378102922,1754733041996,-300.0,0.00021982,2]
[378102923,1754733042006,-151.0,0.00021982,2]
[378102924,1754733042015,-151.0,0.00021982,2]
[378102925,1754733042025,-151.0,0.00021982,2]
[378102926,1754733042034,-151.0,0.00021982,2]
[378102927,1754733042044,-500.0,0.00021982,2]
[378102928,1754733042054,-151.0,0.00021982,2]
[378102929,1754733042063,-151.0,0.00021982,2]
[378102930,1754733042074,-151.0,0.00021982,2]
[378102931,1754733042083,-300.0,0.00021982,2]
[378102932,1754733042093,-151.0,0.00021982,2]
[378102933,1754733042102,-500.0,0.00021982,2]
[378102934,1754733042111,-151.0,0.00021982,2]
[378102935,1754733042122,-151.0,0.00021982,2]
[378102936,1754733042131,-151.0,0.00021982,2]
[378102937,1754733042141,-300.0,0.00021982,2]
[378102938,1754733042151,-151.0,0.00021982,2]
[378102939,1754733042161,-2183.31810187,0.00021982,2]
[378102940,1754733042170,-151.0,0.00021982,2]
[378102941,1754733042181,-500.0,0.00021982,2]
[378102942,1754733042190,-151.0,0.00021982,2]
[378102943,1754733042199,-151.0,0.00021982,2]
[378102944,1754733042209,-300.0,0.00021982,2]
[378102945,1754733042219,-151.0,0.00021982,2]
[378102946,1754733042228,-151.0,0.00021982,2]
[378102947,1754733042237,-500.0,0.00021982,2]
[378102948,1754733042246,-151.0,0.00021982,2]
[378102949,1754733042256,-151.0,0.00021982,2]
[378102950,1754733042265,-300.0,0.00021982,2]
[378102951,1754733042275,-151.0,0.00021982,2]
[378102952,1754733042285,-500.0,0.00021982,2]
[378102953,1754733042294,-151.0,0.00021982,2]
[378102954,1754733042303,-300.0,0.00021982,2]
[378102955,1754733042312,-151.0,0.00021982,2]
[378102956,1754733042322,-151.0,0.00021982,2]
[378102957,1754733042331,-151.0,0.00021982,2]
[378102958,1754733042341,-500.0,0.00021982,2]
[378102959,1754733042350,-151.0,0.00021982,2]
[378102960,1754733042360,-300.0,0.00021982,2]
[378102961,1754733042371,-151.0,0.00021982,2]
[378102962,1754733042380,-151.0,0.00021982,2]
[378102963,1754733042390,-229.41815613,0.00021982,2]
[378102964,1754733042400,-151.0,0.00021982,2]
[378102965,1754733042409,-500.0,0.00021982,2]
[378102966,1754733042419,-151.0,0.00021982,2]
[378102967,1754733042429,-300.0,0.00021982,2]
[378102968,1754733042440,-151.0,0.00021982,2]
[378102969,1754733042450,-151.0,0.00021982,2]
[378102970,1754733042460,-151.0,0.00021982,2]
[378102971,1754733042470,-300.0,0.00021982,2]